[Event "Titled Tuesday Blitz May 24 Late 2022"]
[White "Martinez Alcantara, Jose Eduardo"]
[Black "Yurovskykh, Oleksandr"]
[WhiteFideId "3805662"]
[BlackFideId "14134020"]
[WhiteElo "2690"]
[BlackElo "2292"]
[Result "1-0"]
[Round "01"]
[TimeControl "180+1"]
[Date "2022.05.24"]
[WhiteClock "0:00:11"]
[BlackClock "0:00:05"]

1. e4 {[%clk 0:03:00]}  d5 {[%clk 0:02:57]} 2. exd5 {[%clk 0:03:00]}  Qxd5 {[%clk 0:02:58]} 3. Nf3 {[%clk 0:03:01]}  Bg4 {[%clk 0:02:58]} 4. Be2 {[%clk 0:03:01]}  Nc6 {[%clk 0:02:58]} 5. h3 {[%clk 0:03:01]}  Bxf3 {[%clk 0:02:58]} 6. Bxf3 {[%clk 0:03:01]}  Qe5+ {[%clk 0:02:58]} 7. Qe2 {[%clk 0:03:02]}  Qxe2+ {[%clk 0:02:58]} 8. Bxe2 {[%clk 0:03:02]}  O-O-O {[%clk 0:02:59]} 9. c3 {[%clk 0:02:57]}  e5 {[%clk 0:02:58]} 10. d3 {[%clk 0:02:58]}  f5 {[%clk 0:02:51]} 11. Nd2 {[%clk 0:02:57]}  g6 {[%clk 0:02:50]} 12. Nc4 {[%clk 0:02:56]}  Bh6 {[%clk 0:02:47]} 13. b4 {[%clk 0:02:49]}  Bxc1 {[%clk 0:02:35]} 14. Rxc1 {[%clk 0:02:50]}  a6 {[%clk 0:02:34]} 15. a4 {[%clk 0:02:50]}  Re8 {[%clk 0:02:29]} 16. b5 {[%clk 0:02:43]}  axb5 {[%clk 0:02:23]} 17. axb5 {[%clk 0:02:44]}  Nd8 {[%clk 0:02:18]} 18. O-O {[%clk 0:02:41]}  b6 {[%clk 0:02:10]} 19. Rfe1 {[%clk 0:02:41]}  Nf6 {[%clk 0:02:06]} 20. Ra1 {[%clk 0:02:36]}  Nf7 {[%clk 0:01:33]} 21. Ra7 {[%clk 0:02:24]}  Re6 {[%clk 0:01:03]} 22. Bf3 {[%clk 0:02:13]}  e4 {[%clk 0:00:55]} 23. dxe4 {[%clk 0:02:14]}  fxe4 {[%clk 0:00:56]} 24. Be2 {[%clk 0:02:14]}  Rd8 {[%clk 0:00:49]} 25. Rea1 {[%clk 0:01:55]}  Nd6 {[%clk 0:00:39]} 26. Ne3 {[%clk 0:01:44]}  Kd7 {[%clk 0:00:36]} 27. Rd1 {[%clk 0:01:36]}  Rc8 {[%clk 0:00:29]} 28. Nc4 {[%clk 0:01:24]}  Ke8 {[%clk 0:00:29]} 29. Ne3 {[%clk 0:01:10]}  Re5 {[%clk 0:00:23]} 30. c4 {[%clk 0:01:08]}  h5 {[%clk 0:00:19]} 31. Rxc7 {[%clk 0:01:00]}  Rxc7 {[%clk 0:00:18]} 32. Rxd6 {[%clk 0:01:01]}  Nd7 {[%clk 0:00:15]} 33. Rxg6 {[%clk 0:01:01]}  Ra7 {[%clk 0:00:12]} 34. Rh6 {[%clk 0:00:58]}  Ra1+ {[%clk 0:00:10]} 35. Kh2 {[%clk 0:00:59]}  Ra2 {[%clk 0:00:09]} 36. Bxh5+ {[%clk 0:00:59]}  Kf8 {[%clk 0:00:10]} 37. Bg4 {[%clk 0:00:57]}  Nc5 {[%clk 0:00:10]} 38. Kg3 {[%clk 0:00:54]}  Nd3 {[%clk 0:00:09]} 39. Rxb6 {[%clk 0:00:55]}  Rxf2 {[%clk 0:00:09]} 40. Rd6 {[%clk 0:00:41]}  Rb2 {[%clk 0:00:09]} 41. h4 {[%clk 0:00:31]}  Rb3 {[%clk 0:00:09]} 42. Bd1 {[%clk 0:00:24]}  Ra3 {[%clk 0:00:07]} 43. b6 {[%clk 0:00:20]}  Nc5 {[%clk 0:00:06]} 44. Kf4 {[%clk 0:00:19]}  Re7 {[%clk 0:00:05]} 45. Bg4 {[%clk 0:00:10]}  Rf7+ {[%clk 0:00:05]} 46. Nf5 {[%clk 0:00:11]} 1-0


[Site "https://www.chess.com"]

[Event "Titled Tuesday Blitz May 24 Late 2022"]
[White "Mekhitarian, Krikor Sevag"]
[Black "Przybylski, Wojciech"]
[WhiteFideId "2107660"]
[BlackFideId "1117599"]
[WhiteElo "2598"]
[BlackElo "2133"]
[Result "1-0"]
[Round "01"]
[TimeControl "180+1"]
[Date "2022.05.24"]
[WhiteClock "0:00:30"]
[BlackClock "0:00:06"]

1. d4 {[%clk 0:03:00]}  Nf6 {[%clk 0:02:53]} 2. Nf3 {[%clk 0:03:00]}  b6 {[%clk 0:02:52]} 3. g3 {[%clk 0:02:58]}  Bb7 {[%clk 0:02:51]} 4. Bg2 {[%clk 0:02:58]}  e6 {[%clk 0:02:51]} 5. O-O {[%clk 0:02:59]}  Be7 {[%clk 0:02:51]} 6. c4 {[%clk 0:03:00]}  O-O {[%clk 0:02:51]} 7. Re1 {[%clk 0:03:00]}  d5 {[%clk 0:02:50]} 8. cxd5 {[%clk 0:03:01]}  exd5 {[%clk 0:02:50]} 9. Bf4 {[%clk 0:03:02]}  Nbd7 {[%clk 0:02:49]} 10. Nc3 {[%clk 0:03:02]}  c6 {[%clk 0:02:49]} 11. Rc1 {[%clk 0:03:02]}  Re8 {[%clk 0:02:48]} 12. h3 {[%clk 0:02:37]}  Bf8 {[%clk 0:02:46]} 13. Nd2 {[%clk 0:02:35]}  Rc8 {[%clk 0:02:39]} 14. e4 {[%clk 0:02:35]}  h6 {[%clk 0:02:24]} 15. e5 {[%clk 0:02:28]}  Nh7 {[%clk 0:02:23]} 16. Be3 {[%clk 0:02:28]}  g6 {[%clk 0:02:08]} 17. f4 {[%clk 0:02:27]}  Bg7 {[%clk 0:02:07]} 18. b4 {[%clk 0:02:25]}  Ndf8 {[%clk 0:01:54]} 19. Bf2 {[%clk 0:02:22]}  Ne6 {[%clk 0:01:48]} 20. a4 {[%clk 0:02:20]}  c5 {[%clk 0:01:42]} 21. dxc5 {[%clk 0:01:56]}  bxc5 {[%clk 0:01:41]} 22. b5 {[%clk 0:01:57]}  Ba8 {[%clk 0:01:29]} 23. Nb3 {[%clk 0:01:54]}  c4 {[%clk 0:01:18]} 24. Nd4 {[%clk 0:01:53]}  Nc5 {[%clk 0:01:17]} 25. Nc6 {[%clk 0:01:42]}  Bxc6 {[%clk 0:01:17]} 26. Bxc5 {[%clk 0:01:42]}  Bxb5 {[%clk 0:01:17]} 27. Bxa7 {[%clk 0:01:36]}  Bc6 {[%clk 0:01:16]} 28. Nxd5 {[%clk 0:01:08]}  Qa5 {[%clk 0:01:14]} 29. Bb6 {[%clk 0:01:05]}  Qxa4 {[%clk 0:01:11]} 30. Qxa4 {[%clk 0:00:55]}  Bxa4 {[%clk 0:01:11]} 31. Nc7 {[%clk 0:00:56]}  Re6 {[%clk 0:00:28]} 32. Nxe6 {[%clk 0:00:53]}  fxe6 {[%clk 0:00:29]} 33. Bf1 {[%clk 0:00:47]}  Bb3 {[%clk 0:00:24]} 34. Re4 {[%clk 0:00:46]}  c3 {[%clk 0:00:24]} 35. Re3 {[%clk 0:00:43]}  Rc6 {[%clk 0:00:19]} 36. Rcxc3 {[%clk 0:00:42]}  Rxb6 {[%clk 0:00:12]} 37. Rxb3 {[%clk 0:00:43]}  Rc6 {[%clk 0:00:13]} 38. Rec3 {[%clk 0:00:43]}  Rxc3 {[%clk 0:00:11]} 39. Rxc3 {[%clk 0:00:43]}  Bf8 {[%clk 0:00:11]} 40. Rc6 {[%clk 0:00:42]}  Bb4 {[%clk 0:00:08]} 41. Bc4 {[%clk 0:00:40]}  Nf8 {[%clk 0:00:07]} 42. Bxe6+ {[%clk 0:00:40]}  Kh8 {[%clk 0:00:07]} 43. Kg2 {[%clk 0:00:39]}  Be7 {[%clk 0:00:06]} 44. h4 {[%clk 0:00:39]}  h5 {[%clk 0:00:05]} 45. Bh3 {[%clk 0:00:37]}  Bb4 {[%clk 0:00:05]} 46. Kf3 {[%clk 0:00:38]}  Kg7 {[%clk 0:00:05]} 47. Rc7+ {[%clk 0:00:37]}  Kg8 {[%clk 0:00:05]} 48. f5 {[%clk 0:00:35]}  gxf5 {[%clk 0:00:04]} 49. Bxf5 {[%clk 0:00:36]}  Ba5 {[%clk 0:00:05]} 50. Rb7 {[%clk 0:00:35]}  Bc3 {[%clk 0:00:05]} 51. e6 {[%clk 0:00:33]}  Bf6 {[%clk 0:00:04]} 52. e7 {[%clk 0:00:33]}  Bxe7 {[%clk 0:00:04]} 53. Rxe7 {[%clk 0:00:34]}  Kh8 {[%clk 0:00:04]} 54. Ra7 {[%clk 0:00:34]}  Ne6 {[%clk 0:00:05]} 55. Ra8+ {[%clk 0:00:32]}  Kg7 {[%clk 0:00:05]} 56. Bxe6 {[%clk 0:00:32]}  Kh6 {[%clk 0:00:05]} 57. Bf7 {[%clk 0:00:31]}  Kg7 {[%clk 0:00:06]} 58. Bxh5 {[%clk 0:00:31]}  Kh6 {[%clk 0:00:06]} 59. g4 {[%clk 0:00:31]}  Kg7 {[%clk 0:00:07]} 60. Ra7+ {[%clk 0:00:31]}  Kh6 {[%clk 0:00:07]} 61. g5+ {[%clk 0:00:31]}  Kxh5 {[%clk 0:00:07]} 62. Rg7 {[%clk 0:00:29]}  Kxh4 {[%clk 0:00:07]} 63. Kf4 {[%clk 0:00:30]}  Kh3 {[%clk 0:00:07]} 64. Re7 {[%clk 0:00:29]}  Kg2 {[%clk 0:00:06]} 65. g6 {[%clk 0:00:30]}  Kf2 {[%clk 0:00:05]} 66. g7 {[%clk 0:00:30]}  Kf1 {[%clk 0:00:05]} 67. g8=Q {[%clk 0:00:30]}  Kf2 {[%clk 0:00:05]} 68. Qg3+ {[%clk 0:00:30]}  Kf1 {[%clk 0:00:06]} 69. Re1# {[%clk 0:00:30]} 1-0


[Site "https://www.chess.com"]

[Event "Titled Tuesday Blitz May 24 Late 2022"]
[White "Melikhov, Evgeny V."]
[Black "Olafsson, Helgi"]
[WhiteFideId "4122046"]
[BlackFideId "2300010"]
[WhiteElo "1931"]
[BlackElo "2463"]
[Result "0-1"]
[Round "01"]
[TimeControl "180+1"]
[Date "2022.05.25"]
[WhiteClock "0:00:05"]
[BlackClock "0:00:31"]

1. d4 {[%clk 0:02:59]}  Nf6 {[%clk 0:02:59]} 2. c4 {[%clk 0:02:58]}  e6 {[%clk 0:02:59]} 3. Nc3 {[%clk 0:02:59]}  Bb4 {[%clk 0:02:59]} 4. Qc2 {[%clk 0:02:59]}  c5 {[%clk 0:02:56]} 5. dxc5 {[%clk 0:02:59]}  O-O {[%clk 0:02:56]} 6. a3 {[%clk 0:02:58]}  Bxc5 {[%clk 0:02:56]} 7. Nf3 {[%clk 0:02:58]}  b6 {[%clk 0:02:53]} 8. e3 {[%clk 0:02:56]}  Bb7 {[%clk 0:02:53]} 9. Be2 {[%clk 0:02:52]}  Nc6 {[%clk 0:02:51]} 10. b3 {[%clk 0:02:51]}  Rc8 {[%clk 0:02:51]} 11. Bb2 {[%clk 0:02:50]}  d5 {[%clk 0:02:48]} 12. O-O-O {[%clk 0:02:43]}  Qe7 {[%clk 0:02:43]} 13. b4 {[%clk 0:02:43]}  Bd6 {[%clk 0:02:38]} 14. g4 {[%clk 0:02:40]}  a5 {[%clk 0:02:25]} 15. g5 {[%clk 0:02:37]}  Ng4 {[%clk 0:02:15]} 16. Nb5 {[%clk 0:02:11]}  axb4 {[%clk 0:02:08]} 17. Nxd6 {[%clk 0:02:10]}  Qxd6 {[%clk 0:02:05]} 18. axb4 {[%clk 0:02:04]}  Nxb4 {[%clk 0:02:03]} 19. Qb3 {[%clk 0:01:57]}  Ba6 {[%clk 0:01:52]} 20. Ba3 {[%clk 0:01:44]}  Bxc4 {[%clk 0:01:31]} 21. Bxc4 {[%clk 0:01:29]}  Qb8 {[%clk 0:01:23]} 22. Bxb4 {[%clk 0:01:22]}  Rxc4+ {[%clk 0:01:23]} 23. Kb1 {[%clk 0:01:16]}  Nxf2 {[%clk 0:01:23]} 24. Bxf8 {[%clk 0:01:15]}  Qxf8 {[%clk 0:01:23]} 25. Rd4 {[%clk 0:01:11]}  Rxd4 {[%clk 0:01:19]} 26. Nxd4 {[%clk 0:01:02]}  Nxh1 {[%clk 0:01:18]} 27. Qxb6 {[%clk 0:00:58]}  Nf2 {[%clk 0:01:15]} 28. Nc6 {[%clk 0:00:54]}  Ne4 {[%clk 0:01:12]} 29. h4 {[%clk 0:00:53]}  h6 {[%clk 0:01:07]} 30. Qc7 {[%clk 0:00:48]}  Kh8 {[%clk 0:00:53]} 31. Ne7 {[%clk 0:00:45]}  g6 {[%clk 0:00:48]} 32. h5 {[%clk 0:00:24]}  Nxg5 {[%clk 0:00:37]} 33. hxg6 {[%clk 0:00:22]}  Kg7 {[%clk 0:00:36]} 34. Qe5+ {[%clk 0:00:17]}  f6 {[%clk 0:00:35]} 35. Qc7 {[%clk 0:00:17]}  Kh8 {[%clk 0:00:33]} 36. Kc2 {[%clk 0:00:10]}  Ne4 {[%clk 0:00:31]} 37. Qd7 {[%clk 0:00:05]}  Ng5 {[%clk 0:00:31]} 0-1


[Site "https://www.chess.com"]

[Event "Titled Tuesday Blitz May 24 Late 2022"]
[White "Nazaretyan, Tigran"]
[Black "Kowalysko, Roman"]
[WhiteFideId "24162345"]
[BlackFideId "30918510"]
[WhiteElo "2225"]
[BlackElo "2175"]
[Result "1-0"]
[Round "01"]
[TimeControl "180+1"]
[Date "2022.05.25"]
[WhiteClock "0:00:47"]
[BlackClock "0:00:02"]

1. d4 {[%clk 0:03:00]}  Nf6 {[%clk 0:02:59]} 2. c4 {[%clk 0:02:58]}  e5 {[%clk 0:02:59]} 3. dxe5 {[%clk 0:02:58]}  Ng4 {[%clk 0:02:59]} 4. Nf3 {[%clk 0:02:57]}  Nc6 {[%clk 0:02:59]} 5. Bf4 {[%clk 0:02:52]}  Bb4+ {[%clk 0:02:58]} 6. Nbd2 {[%clk 0:02:52]}  Qe7 {[%clk 0:02:57]} 7. a3 {[%clk 0:02:48]}  Ngxe5 {[%clk 0:02:56]} 8. Nxe5 {[%clk 0:02:44]}  Nxe5 {[%clk 0:02:56]} 9. e3 {[%clk 0:02:43]}  Bc5 {[%clk 0:02:55]} 10. b4 {[%clk 0:02:41]}  Bd4 {[%clk 0:02:54]} 11. Rb1 {[%clk 0:02:31]}  d6 {[%clk 0:02:53]} 12. Be2 {[%clk 0:02:26]}  Bf5 {[%clk 0:02:48]} 13. Rb3 {[%clk 0:02:22]}  Ng6 {[%clk 0:02:46]} 14. Bg3 {[%clk 0:02:13]}  Bf6 {[%clk 0:02:46]} 15. O-O {[%clk 0:02:11]}  O-O {[%clk 0:02:46]} 16. Bg4 {[%clk 0:02:02]}  Bxg4 {[%clk 0:02:40]} 17. Qxg4 {[%clk 0:02:01]}  Ne5 {[%clk 0:02:40]} 18. Qe4 {[%clk 0:01:58]}  b6 {[%clk 0:02:27]} 19. Nf3 {[%clk 0:01:56]}  Nxf3+ {[%clk 0:02:26]} 20. Qxf3 {[%clk 0:01:56]}  a5 {[%clk 0:02:22]} 21. b5 {[%clk 0:01:54]}  Be5 {[%clk 0:02:20]} 22. a4 {[%clk 0:01:53]}  Bxg3 {[%clk 0:02:20]} 23. hxg3 {[%clk 0:01:53]}  Rfe8 {[%clk 0:02:19]} 24. Rd1 {[%clk 0:01:52]}  Rad8 {[%clk 0:02:18]} 25. Rbd3 {[%clk 0:01:52]}  Qe4 {[%clk 0:02:16]} 26. Rd4 {[%clk 0:01:51]}  Qxf3 {[%clk 0:02:14]} 27. gxf3 {[%clk 0:01:51]}  Re5 {[%clk 0:02:11]} 28. f4 {[%clk 0:01:49]}  Re7 {[%clk 0:02:09]} 29. e4 {[%clk 0:01:49]}  Rde8 {[%clk 0:02:08]} 30. f3 {[%clk 0:01:49]}  f6 {[%clk 0:02:07]} 31. g4 {[%clk 0:01:49]}  Kf7 {[%clk 0:02:06]} 32. Kf2 {[%clk 0:01:48]}  g6 {[%clk 0:01:50]} 33. Rd5 {[%clk 0:01:48]}  Re6 {[%clk 0:01:30]} 34. Rh1 {[%clk 0:01:43]}  Kg7 {[%clk 0:01:29]} 35. f5 {[%clk 0:01:43]}  R6e7 {[%clk 0:01:24]} 36. Ke3 {[%clk 0:01:40]}  g5 {[%clk 0:01:23]} 37. Rd2 {[%clk 0:01:39]}  h6 {[%clk 0:01:14]} 38. Rdh2 {[%clk 0:01:38]}  Rh8 {[%clk 0:01:14]} 39. Kd4 {[%clk 0:01:39]}  Re5 {[%clk 0:01:13]} 40. Kc3 {[%clk 0:01:32]}  Re7 {[%clk 0:01:10]} 41. Rd2 {[%clk 0:01:29]}  Re5 {[%clk 0:01:09]} 42. Rd5 {[%clk 0:01:29]}  Rhe8 {[%clk 0:01:08]} 43. Kd4 {[%clk 0:01:23]}  R8e7 {[%clk 0:01:07]} 44. Rh2 {[%clk 0:01:21]}  Re8 {[%clk 0:01:07]} 45. Ke3 {[%clk 0:01:21]}  R8e7 {[%clk 0:01:05]} 46. Rhd2 {[%clk 0:01:21]}  Re8 {[%clk 0:01:04]} 47. R5d3 {[%clk 0:01:18]}  Rc5 {[%clk 0:01:01]} 48. Kd4 {[%clk 0:01:16]}  Rce5 {[%clk 0:01:00]} 49. Rh2 {[%clk 0:01:16]}  R8e7 {[%clk 0:00:46]} 50. Rd1 {[%clk 0:01:16]}  Re8 {[%clk 0:00:46]} 51. Rdh1 {[%clk 0:01:15]}  Rh8 {[%clk 0:00:46]} 52. Rh5 {[%clk 0:01:14]}  Rh7 {[%clk 0:00:36]} 53. Kd3 {[%clk 0:01:13]}  Rh8 {[%clk 0:00:35]} 54. Kc3 {[%clk 0:01:12]}  Re7 {[%clk 0:00:34]} 55. Rd1 {[%clk 0:01:08]}  Re5 {[%clk 0:00:34]} 56. Rd5 {[%clk 0:01:07]}  Rhe8 {[%clk 0:00:34]} 57. Rh1 {[%clk 0:01:06]}  R8e7 {[%clk 0:00:34]} 58. Rhd1 {[%clk 0:01:05]}  Re8 {[%clk 0:00:33]} 59. Rxe5 {[%clk 0:01:02]}  Rxe5 {[%clk 0:00:32]} 60. Rd5 {[%clk 0:01:02]}  Rxd5 {[%clk 0:00:28]} 61. cxd5 {[%clk 0:01:02]}  Kf7 {[%clk 0:00:28]} 62. Kd4 {[%clk 0:01:02]}  Ke7 {[%clk 0:00:28]} 63. Ke3 {[%clk 0:01:02]}  Kf7 {[%clk 0:00:28]} 64. f4 {[%clk 0:01:02]}  Ke7 {[%clk 0:00:27]} 65. Kf3 {[%clk 0:01:02]}  Kf7 {[%clk 0:00:27]} 66. Ke3 {[%clk 0:00:54]}  Ke7 {[%clk 0:00:28]} 67. Kd4 {[%clk 0:00:54]}  Kf7 {[%clk 0:00:27]} 68. e5 {[%clk 0:00:51]}  fxe5+ {[%clk 0:00:20]} 69. fxe5 {[%clk 0:00:49]}  dxe5+ {[%clk 0:00:20]} 70. Kxe5 {[%clk 0:00:49]}  Ke7 {[%clk 0:00:21]} 71. f6+ {[%clk 0:00:47]}  Kf7 {[%clk 0:00:21]} 72. Kf5 {[%clk 0:00:47]}  h5 {[%clk 0:00:15]} 73. gxh5 {[%clk 0:00:46]}  g4 {[%clk 0:00:16]} 74. Kxg4 {[%clk 0:00:43]}  Kxf6 {[%clk 0:00:16]} 75. Kf4 {[%clk 0:00:44]}  Kf7 {[%clk 0:00:14]} 76. Kf5 {[%clk 0:00:44]}  Kg7 {[%clk 0:00:15]} 77. Ke6 {[%clk 0:00:44]}  c5 {[%clk 0:00:14]} 78. dxc6 {[%clk 0:00:44]}  Kh6 {[%clk 0:00:14]} 79. c7 {[%clk 0:00:44]}  Kxh5 {[%clk 0:00:15]} 80. c8=Q {[%clk 0:00:45]}  Kg5 {[%clk 0:00:15]} 81. Qf8 {[%clk 0:00:45]}  Kg4 {[%clk 0:00:15]} 82. Qf2 {[%clk 0:00:45]}  Kg5 {[%clk 0:00:16]} 83. Qf3 {[%clk 0:00:44]}  Kh4 {[%clk 0:00:16]} 84. Qg2 {[%clk 0:00:44]}  Kh5 {[%clk 0:00:16]} 85. Kd6 {[%clk 0:00:44]}  Kh6 {[%clk 0:00:16]} 86. Kc6 {[%clk 0:00:45]}  Kh5 {[%clk 0:00:16]} 87. Kxb6 {[%clk 0:00:46]}  Kh4 {[%clk 0:00:12]} 88. Kxa5 {[%clk 0:00:46]}  Kh5 {[%clk 0:00:13]} 89. Kb4 {[%clk 0:00:46]}  Kh6 {[%clk 0:00:12]} 90. Kc3 {[%clk 0:00:47]}  Kh7 {[%clk 0:00:12]} 91. Kd2 {[%clk 0:00:48]}  Kh6 {[%clk 0:00:12]} 92. Ke1 {[%clk 0:00:49]}  Kh5 {[%clk 0:00:13]} 93. Kf1 {[%clk 0:00:49]}  Kh6 {[%clk 0:00:13]} 94. Kg1 {[%clk 0:00:50]}  Kh7 {[%clk 0:00:13]} 95. Kh1 {[%clk 0:00:51]}  Kh6 {[%clk 0:00:14]} 96. b6 {[%clk 0:00:52]}  Kh7 {[%clk 0:00:14]} 97. b7 {[%clk 0:00:53]}  Kh6 {[%clk 0:00:15]} 98. b8=R {[%clk 0:00:51]}  Kh7 {[%clk 0:00:15]} 99. a5 {[%clk 0:00:52]}  Kh6 {[%clk 0:00:16]} 100. a6 {[%clk 0:00:52]}  Kh7 {[%clk 0:00:17]} 101. a7 {[%clk 0:00:53]}  Kh6 {[%clk 0:00:16]} 102. a8=R {[%clk 0:00:52]}  Kh7 {[%clk 0:00:11]} 103. Kg1 {[%clk 0:00:52]}  Kh6 {[%clk 0:00:11]} 104. Kf2 {[%clk 0:00:52]}  Kh7 {[%clk 0:00:11]} 105. Kf3 {[%clk 0:00:53]}  Kh6 {[%clk 0:00:11]} 106. Kf4 {[%clk 0:00:54]}  Kh5 {[%clk 0:00:08]} 107. Rg8 {[%clk 0:00:53]}  Kh6 {[%clk 0:00:08]} 108. Ra1 {[%clk 0:00:53]}  Kh7 {[%clk 0:00:08]} 109. Rg1 {[%clk 0:00:53]}  Kh6 {[%clk 0:00:08]} 110. Qg7+ {[%clk 0:00:53]}  Kh5 {[%clk 0:00:08]} 111. Rg6 {[%clk 0:00:52]}  Kh4 {[%clk 0:00:08]} 112. Kf3 {[%clk 0:00:52]}  Kh3 {[%clk 0:00:07]} 113. Kf2 {[%clk 0:00:52]}  Kh4 {[%clk 0:00:07]} 114. Kg2 {[%clk 0:00:50]}  Kh5 {[%clk 0:00:05]} 115. Kh2 {[%clk 0:00:50]}  Kh4 {[%clk 0:00:05]} 116. Qd4+ {[%clk 0:00:46]}  Kh5 {[%clk 0:00:03]} 117. Qd1+ {[%clk 0:00:46]}  Kh4 {[%clk 0:00:02]} 118. Qg4# {[%clk 0:00:47]} 1-0


[Site "https://www.chess.com"]

[Event "Titled Tuesday Blitz May 24 Late 2022"]
[White "Nozdrachev, Leonid"]
[Black "Bluebaum, Matthias"]
[WhiteFideId "24113433"]
[BlackFideId "24651516"]
[WhiteElo "2255"]
[BlackElo "2556"]
[Result "1/2-1/2"]
[Round "01"]
[TimeControl "180+1"]
[Date "2022.05.24"]
[WhiteClock "0:00:04"]
[BlackClock "0:00:43"]

1. e4 {[%clk 0:02:54]}  c6 {[%clk 0:03:00]} 2. Qf3 {[%clk 0:02:49]}  d5 {[%clk 0:03:00]} 3. exd5 {[%clk 0:02:37]}  cxd5 {[%clk 0:03:01]} 4. Bb5+ {[%clk 0:02:34]}  Nc6 {[%clk 0:03:00]} 5. c4 {[%clk 0:02:34]}  dxc4 {[%clk 0:02:45]} 6. Ne2 {[%clk 0:02:24]}  Bd7 {[%clk 0:02:38]} 7. Bxc4 {[%clk 0:02:22]}  Ne5 {[%clk 0:02:38]} 8. Qb3 {[%clk 0:02:18]}  Nxc4 {[%clk 0:02:38]} 9. Qxc4 {[%clk 0:02:19]}  Rc8 {[%clk 0:02:38]} 10. Qb3 {[%clk 0:02:18]}  Nf6 {[%clk 0:02:38]} 11. Nbc3 {[%clk 0:02:16]}  Bc6 {[%clk 0:02:35]} 12. O-O {[%clk 0:02:14]}  Qd3 {[%clk 0:02:27]} 13. Nf4 {[%clk 0:02:06]}  Qf5 {[%clk 0:02:12]} 14. d4 {[%clk 0:02:03]}  e6 {[%clk 0:02:12]} 15. Re1 {[%clk 0:01:50]}  Be7 {[%clk 0:02:09]} 16. Re5 {[%clk 0:01:46]}  Qg4 {[%clk 0:01:58]} 17. h3 {[%clk 0:01:44]}  Qh4 {[%clk 0:01:56]} 18. g3 {[%clk 0:01:42]}  Qh6 {[%clk 0:01:55]} 19. Nxe6 {[%clk 0:00:51]}  Qxh3 {[%clk 0:01:52]} 20. Nxg7+ {[%clk 0:00:50]}  Kf8 {[%clk 0:01:52]} 21. d5 {[%clk 0:00:51]}  Ng4 {[%clk 0:01:46]} 22. Rh5 {[%clk 0:00:48]}  Kxg7 {[%clk 0:01:24]} 23. Rxh3 {[%clk 0:00:45]}  Bd7 {[%clk 0:01:25]} 24. Qxb7 {[%clk 0:00:37]}  Rcd8 {[%clk 0:01:23]} 25. Qxa7 {[%clk 0:00:35]}  h5 {[%clk 0:01:23]} 26. Ne4 {[%clk 0:00:27]}  Ne5 {[%clk 0:01:11]} 27. Qd4 {[%clk 0:00:25]}  f6 {[%clk 0:01:12]} 28. Qa7 {[%clk 0:00:07]}  Ra8 {[%clk 0:01:12]} 29. Qb7 {[%clk 0:00:05]}  Rhb8 {[%clk 0:01:10]} 30. Qc7 {[%clk 0:00:05]}  Rc8 {[%clk 0:01:11]} 31. Qb7 {[%clk 0:00:05]}  Rcb8 {[%clk 0:01:04]} 32. Qc7 {[%clk 0:00:05]}  Bd8 {[%clk 0:01:05]} 33. Qd6 {[%clk 0:00:03]}  Bxh3 {[%clk 0:01:05]} 34. Bh6+ {[%clk 0:00:02]}  Kxh6 {[%clk 0:01:04]} 35. Nxf6 {[%clk 0:00:02]}  Bxf6 {[%clk 0:01:04]} 36. Qxf6+ {[%clk 0:00:02]}  Ng6 {[%clk 0:01:05]} 37. f4 {[%clk 0:00:02]}  Rf8 {[%clk 0:01:02]} 38. Qg5+ {[%clk 0:00:02]}  Kg7 {[%clk 0:01:03]} 39. Re1 {[%clk 0:00:02]}  Ra7 {[%clk 0:01:02]} 40. d6 {[%clk 0:00:02]}  Rff7 {[%clk 0:00:58]} 41. Re7 {[%clk 0:00:02]}  Raxe7 {[%clk 0:00:57]} 42. dxe7 {[%clk 0:00:03]}  Rxe7 {[%clk 0:00:58]} 43. f5 {[%clk 0:00:02]}  Re1+ {[%clk 0:00:57]} 44. Kh2 {[%clk 0:00:03]}  Bxf5 {[%clk 0:00:47]} 45. Qxf5 {[%clk 0:00:03]}  Re2+ {[%clk 0:00:48]} 46. Kh3 {[%clk 0:00:03]}  Rxb2 {[%clk 0:00:49]} 47. Qg5 {[%clk 0:00:03]}  Rxa2 {[%clk 0:00:47]} 48. Qxh5 {[%clk 0:00:03]}  Ra3 {[%clk 0:00:47]} 49. Qb5 {[%clk 0:00:02]}  Ra7 {[%clk 0:00:44]} 50. Qb6 {[%clk 0:00:02]}  Re7 {[%clk 0:00:44]} 51. Qb2+ {[%clk 0:00:02]}  Kh6 {[%clk 0:00:44]} 52. Kg4 {[%clk 0:00:02]}  Re5 {[%clk 0:00:44]} 53. Kf3 {[%clk 0:00:02]}  Rf5+ {[%clk 0:00:44]} 54. Kg4 {[%clk 0:00:01]}  Rg5+ {[%clk 0:00:44]} 55. Kh3 {[%clk 0:00:02]}  Kh7 {[%clk 0:00:42]} 56. Kg2 {[%clk 0:00:02]}  Re5 {[%clk 0:00:40]} 57. Qb7+ {[%clk 0:00:02]}  Kh6 {[%clk 0:00:40]} 58. Qb8 {[%clk 0:00:02]}  Re2+ {[%clk 0:00:40]} 59. Kf3 {[%clk 0:00:02]}  Re7 {[%clk 0:00:41]} 60. Kf2 {[%clk 0:00:02]}  Rf7+ {[%clk 0:00:41]} 61. Kg2 {[%clk 0:00:02]}  Re7 {[%clk 0:00:42]} 62. Qa8 {[%clk 0:00:02]}  Kg7 {[%clk 0:00:42]} 63. Qb8 {[%clk 0:00:02]}  Re2+ {[%clk 0:00:43]} 64. Kf3 {[%clk 0:00:02]}  Re7 {[%clk 0:00:43]} 65. Kg2 {[%clk 0:00:02]}  Ne5 {[%clk 0:00:43]} 66. Kh3 {[%clk 0:00:03]}  Ng6 {[%clk 0:00:43]} 67. Qd6 {[%clk 0:00:03]}  Re5 {[%clk 0:00:43]} 68. Qd7+ {[%clk 0:00:03]}  Kh6 {[%clk 0:00:43]} 69. Qc8 {[%clk 0:00:03]}  Rh5+ {[%clk 0:00:43]} 70. Kg2 {[%clk 0:00:02]}  Re5 {[%clk 0:00:43]} 71. Qa8 {[%clk 0:00:03]}  Kh7 {[%clk 0:00:42]} 72. Kf3 {[%clk 0:00:03]}  Kh6 {[%clk 0:00:41]} 73. Kf2 {[%clk 0:00:04]}  Rf5+ {[%clk 0:00:42]} 74. Kg2 {[%clk 0:00:04]}  Re5 {[%clk 0:00:42]} 75. Kh3 {[%clk 0:00:04]}  Rh5+ {[%clk 0:00:43]} 76. Kg4 {[%clk 0:00:04]}  Re5 {[%clk 0:00:44]} 77. Kh3 {[%clk 0:00:04]}  Kg7 {[%clk 0:00:42]} 78. Kg2 {[%clk 0:00:04]}  Re7 {[%clk 0:00:43]} 79. Qb8 {[%clk 0:00:04]} 1/2-1/2


[Site "https://www.chess.com"]